Cogmind - Beta 9.5 @@@ ROGUE MODE // 2020.03.31 @ 22:31:11 // AFD2020/Player2 Player: PhenomPhear Result: Core destroyed Performance ------------- Evolutions (3) 1500 Regions Visited (8) 1600 Robots Destroyed (46) 230 Value Destroyed (1776) 1776 Prototype IDs (9) 180 Alien Tech Used (0) 0 Bonus (1963) 1963 TOTAL SCORE: 7249 Bonus ------- High Alert Combat Kills 257 Follower Combat Kills 847 Entered Garrisons 200 Used RIF Installer 500 Aligned with FarCom 300 Friendly Fire -141 Cogmind --------- Core Integrity 0/700 Matter 111/300 Energy 262/325 System Corruption 0% Temperature Cool (0) Movement Rolling (110) Ox1 Location -7/Factory Parts ------- > --- POWER (2) -------- Deuterium Engine Light Angular Momentum Engine > --- PROPULSION (3) --- Medium Treads Armored Huge Wheel > --- UTILITY (6) ------ Advanced Heat Sink Cooling System Lightpack 2.0 Trap Reconfigurator > --- WEAPON (2) ------- Lightning Gun Arc Projector > --- INVENTORY (24) --- Armored Huge Wheel Improved Heat Sink Compact Matter Pod (0) Enhanced Optical Array Advanced Signal Interpreter Advanced Signal Interpreter Advanced Signal Interpreter Core Analyzer Relay Coupler [NC] (30) Relay Coupler [NC] (29) Relay Coupler [NC] (30) Relay Coupler [Swarmer] (44) Relay Coupler [Brawler] (26) Relay Coupler [Sentry] (25) Relay Coupler [Hunter] (14) Lightning Gun Pulse Rifle Heavy Particle Gun Plasma Cannon Missile Launcher Missile Launcher Peak State ------------ > --- POWER ------------ Deuterium Engine Light Angular Momentum Engine > --- PROPULSION ------- Medium Treads Armored Huge Wheel > --- UTILITY ---------- Advanced Heat Sink Cooling System Lightpack 2.0 Improved Medium Armor Plating Trap Reconfigurator > --- WEAPON ----------- Lightning Gun Arc Projector > --- INVENTORY -------- Armored Huge Wheel Improved Heat Sink Compact Matter Pod Enhanced Optical Array Advanced Signal Interpreter Advanced Signal Interpreter Advanced Signal Interpreter Core Analyzer Relay Coupler [NC] Relay Coupler [NC] Relay Coupler [NC] Relay Coupler [Swarmer] Relay Coupler [Brawler] Relay Coupler [Sentry] Relay Coupler [Hunter] Lightning Gun Pulse Rifle Heavy Particle Gun Plasma Cannon Missile Launcher Missile Launcher [Rating: 75] Favorites ----------- Power Light Ion Engine Engine Light Ion Engine Power Core Micro Nuclear Core Propulsion Light Treads Treads Light Treads Wheel Armored Huge Wheel Flight Unit Cooled VTOL Module Utility Lightpack 2.0 Device Trap Reconfigurator Storage Lightpack 2.0 Processor Advanced Targeting Computer Protection Layered Light Armor Plating Weapon Heavy EM Pulse Gun Energy Gun Heavy EM Pulse Gun Ballistic Gun Assault Rifle Launcher Mini Grenade Launcher Build | -11 -10 -10 -10 -9 -8 -7 -7 -7 ------- Run | Scr Mat Min Exi Min Mat Fac Gar Fac Slots Evolved 6 | . . . . . 4 2 . . Power 1 | . . . . . 1 . . . Propulsion 1 | . . . . . 1 . . . Utility 4 | . . . . . 2 2 . . Weapon . | . . . . . . . . . Parts Attached 52 | 6 7 . 3 1 5 6 5 19 Power 6 | 1 . . . . 1 1 . 3 Engine 5 | 1 . . . . 1 . . 3 Core 1 | . . . . . . 1 . . Reactor . | . . . . . . . . . Propulsion 9 | 2 . . . . 1 1 . 5 Treads 5 | 2 . . . . 1 . . 2 Leg . | . . . . . . . . . Wheel 3 | . . . . . . 1 . 2 Hover . | . . . . . . . . . Flight 1 | . . . . . . . . 1 Utility 14 | 1 3 . 2 . 2 2 2 2 Device 5 | . . . 1 . 1 . 2 1 Storage 5 | 1 3 . 1 . . . . . Processor 2 | . . . . . . 2 . . Hackware . | . . . . . . . . . Protection 2 | . . . . . 1 . . 1 Artifact . | . . . . . . . . . Weapon 23 | 2 4 . 1 1 1 2 3 9 Energy Gun 16 | 1 3 . 1 1 1 1 1 7 Energy Cannon . | . . . . . . . . . Ballistic Gun 1 | 1 . . . . . . . . Ballistic Cannon . | . . . . . . . . . Launcher 6 | . 1 . . . . 1 2 2 Special Weapon . | . . . . . . . . . Impact Weapon . | . . . . . . . . . Slashing Weapon . | . . . . . . . . . Piercing Weapon . | . . . . . . . . . Special Melee Weapon . | . . . . . . . . . Unidentified Prototypes 5 | . . . 3 . 1 . . 1 Parts Lost 8 | . . . . . . . 5 3 Power 2 | . . . . . . . 1 1 Propulsion 1 | . . . . . . . 1 . Utility 2 | . . . . . . . 1 1 Weapon 3 | . . . . . . . 2 1 Highest Loss Streak 4 | . . . . . . . 4 3 Average Slot Usage (%) 79 | . 96 100 84 67 61 81 66 81 Engine 12 | . 14 14 14 14 10 8 7 14 Treads 17 | . 28 28 28 28 19 15 1 5 Wheel 2 | . . . . . . 3 7 7 Device 8 | . . . . . 7 7 16 23 Storage 14 | . 24 28 22 14 9 7 7 7 Processor 1 | . . . . . . 8 5 . Protection 3 | . . . . . 6 7 7 6 Energy Gun 13 | . 18 28 18 10 9 14 3 11 Ballistic Gun 1 | . 9 . . . . . . . Launcher 1 | . . . . . . . 5 3 Naked Turns . | . . . . . . . . . Heaviest Build 57 | 11 57 57 57 16 23 29 30 43 Greatest Support 60 | 40 40 40 40 40 60 60 28 28 Greatest Overweight (x) 2 | . 1 1 1 . . 1 1 2 Average Overweight (x) . | . . 1 . . . . . 1 Largest Inventory Capacity 24 | 6 18 18 24 24 24 24 24 24 Average Capacity 21 | 5 15 18 20 24 24 24 24 24 Most Carried 24 | 6 11 11 12 8 8 8 16 24 Average Carried 10 | 4 7 11 9 6 6 6 12 19 Final Capacity 24 | 6 18 18 24 24 24 24 24 24 Final Carried 22 | 6 11 11 8 6 7 8 16 22 Class Distribution -------------------- 67% | Hauler-Mutant 32% | Mutant Dominant Class ---------------- Mutant | -10/Materials Mutant | -10/Mines Mutant | -10/Exiles Hauler-Mutant | -9/Mines Hauler-Mutant | -8/Materials Hauler-Mutant | -7/Factory Hauler-Mutant | -7/Garrison Hauler-Mutant | -7/Factory Resources | -11 -10 -10 -10 -9 -8 -7 -7 -7 ----------- Run | Scr Mat Min Exi Min Mat Fac Gar Fac Matter Collected 732 | 197 50 . 150 10 16 . 53 256 Remotely . | . . . . . . . . . Salvage Created 1228 | . 162 . . 128 201 . 293 444 Parts 53 | . 10 . . 3 9 . 13 18 Haulers Intercepted 1 | . 1 . . . . . . . Recyclers Shooed 1 | . . . . . 1 . . . Parts Field Recycled . | . . . . . . . . . Retrieved Matter . | . . . . . . . . . Parts Self-Destructed . | . . . . . . . . . Prevented . | . . . . . . . . . Kills | -11 -10 -10 -10 -9 -8 -7 -7 -7 ------- Run | Scr Mat Min Exi Min Mat Fac Gar Fac Combat Hostiles Destroyed 42 | . 4 . . 9 7 . 13 9 Guns 26 | . 2 . . 9 7 . 3 5 AOE 14 | . 2 . . . . . 10 2 Classes Destroyed 9 | . 3 . . 2 1 . . 3 Worker 1 | . . . . . . . . 1 Hauler 1 | . 1 . . . . . . . Watcher 2 | . 1 . . . . . . 1 Swarmer 10 | . . . . 1 4 . 3 2 Grunt 18 | . 4 . . . 2 . 9 3 Brawler 1 | . . . . . . . . 1 Duelist 2 | . . . . . . . . 2 Sentry 3 | . . . . . 1 . 1 1 Assembled 8 | . . . . 8 . . . . Best Kill Streak 11 | . 4 . . 3 3 . 11 7 Combat Bots Only 11 | . 3 . . 3 3 . 11 5 Max Kills in Single Turn 2 | . 2 . . 1 1 . 2 1 Gunslinging . | . . . . . . . . . Exploded 2 | . 1 . . . . . 2 1 Melee . | . . . . . . . . . Uniques/NPCs Destroyed . | . . . . . . . . . Combat | -11 -10 -10 -10 -9 -8 -7 -7 -7 -------- Run | Scr Mat Min Exi Min Mat Fac Gar Fac Damage Taken 1912 | . 63 . . 82 114 . 932 721 Core 276 | . . . . 32 9 . 184 51 Absorbed by Shields . | . . . . . . . . . Core Remaining (%) 84 | 100 . . . 56 96 . . . Volleys Fired 92 | . 11 . . . 10 . 28 43 Largest 2 | . 2 . . . 1 . 2 2 Hottest 132 | . 90 . . . 50 . 113 132 Shots Fired 177 | . 19 . . 18 27 . 35 78 Gun 153 | . 16 . . 18 27 . 18 74 Cannon . | . . . . . . . . . Launcher 24 | . 3 . . . . . 17 4 Special . | . . . . . . . . . Kinetic 4 | . 4 . . . . . . . Thermal 113 | . 4 . . 18 27 . 18 46 Explosive 24 | . 3 . . . . . 17 4 Electromagnetic 36 | . 8 . . . . . . 28 Robot Hit Streak 15 | . 6 . . 15 6 . 9 9 Robot Miss Streak 3 | . 2 . . 1 3 . 3 2 Penetration Max . | . . . . . . . . . Secondary Targets 1 | . . . . . . . . 1 Max Gunslinging Chain 1 | . . . . . . . . 1 Autonomous 36 | . . . . 18 18 . . . Shots Hit Robots 117 | . 11 . . 17 16 . 17 56 Core Hits 99 | . 9 . . 10 9 . 47 24 Critical Hits . | . . . . . . . . . Critical Kills . | . . . . . . . . . Critical Parts Destroyed . | . . . . . . . . . Melee Attacks . | . . . . . . . . . Impact . | . . . . . . . . . Slashing . | . . . . . . . . . Piercing . | . . . . . . . . . Sneak Attacks . | . . . . . . . . . Combat Hostiles . | . . . . . . . . . Follow-up Attacks . | . . . . . . . . . Damage Inflicted 4277 | . 564 16 . 507 465 . 1653 1072 Guns 2194 | . 164 . . 494 458 . 187 891 Cannons . | . . . . . . . . . Explosions 2045 | . 400 . . . . . 1466 179 Melee . | . . . . . . . . . Ramming 38 | . . 16 . 13 7 . . 2 Kinetic 49 | . 49 . . . . . . . Thermal 1852 | . 50 . . 494 458 . 187 663 Explosive 2045 | . 400 . . . . . 1466 179 Electromagnetic 293 | . 65 . . . . . . 228 Impact . | . . . . . . . . . Slashing . | . . . . . . . . . Piercing . | . . . . . . . . . Highest Corruption . | . . . . . . . . . Average Corruption . | . . . . . . . . . Corruption Purged . | . . . . . . . . . Overload Shots . | . . . . . . . . . Overflow Damage 120 | . 1 . . . . . 76 43 Projectiles . | . . . . . . . . . Explosions 120 | . 1 . . . . . 76 43 Melee . | . . . . . . . . . Knockbacks 1 | . . . . . 1 . . . Impact 1 | . . . . . 1 . . . Kinetic . | . . . . . . . . . Secondary . | . . . . . . . . . Self-Inflicted Damage 28 | . . . . . . . 28 . Shots 1 | . . . . . . . 1 . Rammed 9 | . . 1 . 4 3 . . 1 Targets Rammed 9 | . . 1 . 4 3 . . 1 Kicked . | . . . . . . . . . Crushed . | . . . . . . . . . Highest Temperature 324 | . 90 . . 2 48 . 324 1 Average Temperature 62 | . 29 . . 2 22 . 127 1 Received Heat Transfer 461 | . 24 . . 20 9 . 318 90 Effects 1 | . . . . . . . 1 . Interference 1 | . . . . . . . 1 . Siege Activations . | . . . . . . . . . Robots Corrupted 1 | . . . . . . . . 1 Combat Hostiles 1 | . . . . . . . . 1 Parts Fried 3 | . . . . . . . . 3 Impact Corruptions . | . . . . . . . . . Robots Melted 1 | . . . . . . . . 1 Combat Hostiles 1 | . . . . . . . . 1 Parts Melted 5 | . . . . . 2 . . 3 Heat Transferred 3228 | . 148 . . 629 629 . 481 1341 Parts Sabotaged . | . . . . . . . . . Parts Stolen . | . . . . . . . . . Parts Stripped . | . . . . . . . . . Power Chain Reactions . | . . . . . . . . . Missiles Intercepted . | . . . . . . . . . Alert | -11 -10 -10 -10 -9 -8 -7 -7 -7 ------- Run | Scr Mat Min Exi Min Mat Fac Gar Fac Peak Influence 1012 | . 140 54 . 87 399 145 1012 898 Average Influence 340 | . 42 54 . 4 174 130 672 685 Maximum Alert Level 3 | . . . . . 1 . 3 3 Low Security (%) 52 | 100 100 100 . 100 54 100 9 . Level 1 8 | . . . . . 45 . 12 . Level 2 16 | . . . . . . . 6 61 Level 3 22 | . . . . . . . 71 38 Level 4 . | . . . . . . . . . Level 5 . | . . . . . . . . . High Security . | . . . . . . . . . Max Security . | . . . . . . . . . Squads Dispatched 10 | . 1 . . . 1 1 . 7 Investigation 1 | . . . . . 1 . . . Extermination 1 | . . . . . . 1 . . Reinforcement 2 | . 1 . . . . . . 1 Assault 5 | . . . . . . . . 5 Garrison 1 | . . . . . . . . 1 Intercept . | . . . . . . . . . Construction Impeded . | . . . . . . . . . Haulers Reinforced . | . . . . . . . . . Stealth | -11 -10 -10 -10 -9 -8 -7 -7 -7 --------- Run | Scr Mat Min Exi Min Mat Fac Gar Fac Distress Signals 2 | . 2 . . . . . . . Communications Jammed . | . . . . . . . . . Distress Signals . | . . . . . . . . . Times Spotted 94 | . 11 . . 14 14 1 24 30 Peak Tracking Total 15 | . 5 . . 3 4 2 15 14 Tactical Retreats 4 | . . . . . 2 . 2 . Traps | -11 -10 -10 -10 -9 -8 -7 -7 -7 ------- Run | Scr Mat Min Exi Min Mat Fac Gar Fac Traps Triggered 4 | . . . . . 1 . 3 . Indirectly . | . . . . . . . . . Trap Hack Attempts . | . . . . . . . . . Triggered . | . . . . . . . . . Disarmed . | . . . . . . . . . Reprogrammed . | . . . . . . . . . Reused 1 | . . . . . 1 . . . Traps Reconfigurated 17 | . . . . . 4 . 13 . Traps Extracted . | . . . . . . . . . Installed . | . . . . . . . . . Triggered 1 | . . . . . 1 . . . Machines | -11 -10 -10 -10 -9 -8 -7 -7 -7 ---------- Run | Scr Mat Min Exi Min Mat Fac Gar Fac Machines Disabled 4 | . . . . . 1 . 3 . Max in Single Turn 1 | . . . . . . . 1 . Garrison Relay 2 | . . . . . . . 2 . Machines Sabotaged . | . . . . . . . . . Garrisons Compromised . | . . . . . . . . . Overloaded Fab Kills . | . . . . . . . . . Fab Network Shutdowns . | . . . . . . . . . Hacking | -11 -10 -10 -10 -9 -8 -7 -7 -7 --------- Run | Scr Mat Min Exi Min Mat Fac Gar Fac Machines Accessed 8 | . 2 . . . . 2 . 4 Terminals 4 | . 1 . . . . . . 3 Fabricators . | . . . . . . . . . Repair Stations . | . . . . . . . . . Recycling Units 1 | . 1 . . . . . . . Scanalyzers 2 | . . . . . . 1 . 1 Garrison Access 1 | . . . . . . 1 . . Total Hacks 15 | . 6 . . . . 3 . 6 Successful 5 | . 2 . . . . 1 . 2 Failed 10 | . 4 . . . . 2 . 4 Catastrophic 3 | . 1 . . . . . . 2 Database Lockouts . | . . . . . . . . . Manual 7 | . 5 . 2 . . . . . Terminals 8 | . 3 . . . . . . 5 Fabricators . | . . . . . . . . . Repair Stations . | . . . . . . . . . Recycling Units 3 | . 3 . . . . . . . Scanalyzers 3 | . . . . . . 2 . 1 Garrison Access 1 | . . . . . . 1 . . Terminal Hacks 1 | . . . . . . . . 1 Prototype ID Bank 1 | . . . . . . . . 1 Fabricator Hacks . | . . . . . . . . . Repair Station Hacks . | . . . . . . . . . Recycling Unit Hacks 1 | . 1 . . . . . . . Retrieve Components 1 | . 1 . . . . . . . Scanalyzer 1 | . . . . . . . . 1 Insert Component 1 | . . . . . . . . 1 Garrison Access Hacks 1 | . . . . . . 1 . . Unlock Access 1 | . . . . . . 1 . . Unauthorized Hacks 3 | . 3 . . . . . . . Terminals . | . . . . . . . . . Fabricators . | . . . . . . . . . Repair Stations . | . . . . . . . . . Recycling Units 1 | . 1 . . . . . . . Reject 1 | . 1 . . . . . . . Scanalyzers . | . . . . . . . . . Garrison Access . | . . . . . . . . . Data Cores Recovered 1 | . . . . . . . . 1 Used . | . . . . . . . . . Hacking Detections 6 | . 1 . . . . 1 . 4 Full Trace Events . | . . . . . . . . . Feedback Events . | . . . . . . . . . Feedback Blocked . | . . . . . . . . . Robot Schematics Acquired . | . . . . . . . . . Robots Built . | . . . . . . . . . Matter . | . . . . . . . . . Time . | . . . . . . . . . Total Robot Build Rating . | . . . . . . . . . Part Schematics Acquired . | . . . . . . . . . Parts Built . | . . . . . . . . . Matter . | . . . . . . . . . Time . | . . . . . . . . . Total Part Build Rating . | . . . . . . . . . Parts Repaired . | . . . . . . . . . Time . | . . . . . . . . . Parts Recycled . | . . . . . . . . . Recycled Matter . | . . . . . . . . . Retrieved Matter . | . . . . . . . . . Retrieved Components . | . . . . . . . . . Parts Scanalyzed . | . . . . . . . . . Part Schematics Acquired . | . . . . . . . . . Parts Damaged . | . . . . . . . . . Bothacking | -11 -10 -10 -10 -9 -8 -7 -7 -7 ------------ Run | Scr Mat Min Exi Min Mat Fac Gar Fac Used RIF Installer 1 | . . . . . . . 1 . Robots Hacked . | . . . . . . . . . Non-combat . | . . . . . . . . . Combat . | . . . . . . . . . Robot Hacks Applied . | . . . . . . . . . Relay Couplers Released 8 | . . . . . . . 8 . Machine Destruction 8 | . . . . . . . 8 . Robots Rewired . | . . . . . . . . . Allies Hacked . | . . . . . . . . . Hacks Repelled . | . . . . . . . . . Allies | -11 -10 -10 -10 -9 -8 -7 -7 -7 -------- Run | Scr Mat Min Exi Min Mat Fac Gar Fac Total Allies 1 | . 1 . . . . . . . Largest Group 1 | . 1 1 1 1 1 1 1 1 Highest-Rated Group 86 | . 59 59 60 61 72 77 77 86 Highest-Rated Ally 86 | . 59 59 60 61 72 77 77 86 Total Orders . | . . . . . . . . . Ally Attacks 148 | . 13 . . 9 24 . 39 63 Total Damage 3802 | . 280 . . 152 610 . 1104 1656 Kills 35 | . 2 . . 5 7 . 9 12 Allies Corrupted . | . . . . . . . . . Allies Melted . | . . . . . . . . . Intel | -11 -10 -10 -10 -9 -8 -7 -7 -7 ------- Run | Scr Mat Min Exi Min Mat Fac Gar Fac Robot Analysis Total . | . . . . . . . . . Derelict Logs Recovered . | . . . . . . . . . Drone Launches . | . . . . . . . . . Drone Recoveries . | . . . . . . . . . Exploration | -11 -10 -10 -10 -9 -8 -7 -7 -7 ------------- Run | Scr Mat Min Exi Min Mat Fac Gar Fac Turns Passed 4382 | 115 518 145 1045 373 451 281 625 829 Spaces Moved 2648 | 62 269 78 596 225 259 207 415 537 Core 4 | 4 . . . . . . . . Treads 1617 | 58 269 78 596 225 259 79 . 53 Legs . | . . . . . . . . . Wheels 1027 | . . . . . . 128 415 484 Hover . | . . . . . . . . . Flight . | . . . . . . . . . Fastest Speed 50 | 50 160 180 160 160 160 110 100 100 Average Speed 144 | 152 172 180 172 160 160 129 102 118 Slowest Speed 200 | 160 180 180 180 160 160 160 110 200 Overloaded Moves . | . . . . . . . . . Propulsion Burnouts . | . . . . . . . . . Robots Hopped . | . . . . . . . . . Cave-ins Triggered . | . . . . . . . . . Exploration Rate (%) 38 | 4 60 19 92 55 23 5 75 13 Regions Visited 8 Branch Regions 3 Pre-discovered Areas 1 | . . 1 . . . . . . Known Exits Taken 1 | . . . . . . 1 . . Unknown Exits Taken 6 | 1 1 1 1 1 1 . . . Scrap Searched . | . . . . . . . . . Spaces Dug 5 | . . . . . . . . 5 Terrain Destroyed 105 | . 26 . . 1 2 . 51 25 Melee . | . . . . . . . . . Projectile 3 | . . . . 1 2 . . . AOE 102 | . 26 . . . . . 51 25 Actions | -11 -10 -10 -10 -9 -8 -7 -7 -7 --------- Run | Scr Mat Min Exi Min Mat Fac Gar Fac Total 3055 | 79 304 82 618 236 283 221 580 652 Wait 142 | 6 . 4 2 7 2 . 98 23 Move 2640 | 61 268 77 595 224 258 206 414 537 Hop . | . . . . . . . . . Pick Up 57 | 6 10 . 8 . 4 6 10 13 Fast Attach 21 | 6 1 . 2 . 2 . 1 9 Attach 15 | . . . 1 1 3 5 2 3 Detach 2 | . . . 1 . . . 1 . Swap 16 | . 6 . . . . 1 2 7 Drop 37 | . 8 . 9 . 1 3 . 16 Fire 92 | . 11 . . . 10 . 28 43 Melee . | . . . . . . . . . Ram . | . . . . . . . . . Kick . | . . . . . . . . . Crush 9 | . . 1 . 4 3 . . 1 Escape Stasis 24 | . . . . . . . 24 . Rewire . | . . . . . . . . . Trap . | . . . . . . . . . Miscellaneous . | . . . . . . . . . Route ------- -11/Scrapyard -10/Materials (discovered 3 exits: [*Mat x2] / [*Min]) -10/Mines -10/Exiles -9/Mines -8/Materials -7/Factory -7/Garrison (discovered 3 exits: *Fac x3) -7/Factory History --------- Turn | Location | Event 3 | -11/Scrapyard | Discovered new exit (range 15) 116 | -11/Scrapyard | Entered Materials 303 | -10/Materials | Build established: Mutant 343 | -10/Materials | Discovered new exit (range 5) 556 | -10/Materials | Discovered new exit (range 12) 605 | -10/Materials | Discovered new exit (range 15) 634 | -10/Materials | Entered Mines 634 | -10/Mines | Accompanied by 1 ally 711 | -10/Mines | Learned location of Storage (-8) 768 | -10/Mines | Deemed a non-threat by the Exiles lab entrance 768 | -10/Mines | Discovered new exit (range 5) 779 | -10/Mines | Entered Exiles 779 | -10/Exiles | Accompanied by 1 ally 830 | -10/Exiles | Met 8R-AWN 855 | -10/Exiles | Met EX-HEX 941 | -10/Exiles | Met EX-DEC 977 | -10/Exiles | Visited The Gauntlet 1224 | -10/Exiles | Met EX-BIN 1381 | -10/Exiles | Aligned with FarCom system 1382 | -10/Exiles | Given EX-Vault access code 1429 | -10/Exiles | Opened EX-Vault 1438 | -10/Exiles | Found Prototype Device 1442 | -10/Exiles | Identified Trap Reconfigurator 1448 | -10/Exiles | Found Prototype Storage 1448 | -10/Exiles | Identified Lightpack 2.0 1458 | -10/Exiles | Found Prototype Energy Gun 1460 | -10/Exiles | Identified AWS/Thermal 1524 | -10/Exiles | Warned to stay clear of 0b10 Research branches 1743 | -10/Exiles | Build established: Hauler-Mutant 1808 | -10/Exiles | Discovered new exit (range 10) 1824 | -10/Exiles | Stole three prototypes: Lightpack 2.0, Trap Reconfigurator, AWS/Thermal 1824 | -10/Exiles | Entered Mines 1824 | -9/Mines | Accompanied by 1 ally 1891 | -9/Mines | Assembled infested the area 1896 | -9/Mines | Assisted by a Guerilla fighting off Assembled 2183 | -9/Mines | Discovered new exit (range 10) 2197 | -9/Mines | Entered Materials 2197 | -8/Materials | Accompanied by 1 ally 2197 | -8/Materials | Evolved 4 slots: Power x1, Propulsion x1, Utility x2 2436 | -8/Materials | Discovered new exit (range 10) 2648 | -8/Materials | Entered Factory 2648 | -7/Factory | Accompanied by 1 ally 2648 | -7/Factory | Evolved 2 slots: Utility x2 2650 | -7/Factory | FarCom data flow suspended 2879 | -7/Factory | Identified exit to Garrison 2929 | -7/Factory | Entered Garrison 2929 | -7/Garrison | Accompanied by 1 ally 2952 | -7/Garrison | Triggered checkpoint 2987 | -7/Garrison | Garrison Relay disabled 3064 | -7/Garrison | Triggered checkpoint 3078 | -7/Garrison | Triggered checkpoint 3110 | -7/Garrison | Triggered checkpoint 3114 | -7/Garrison | Destroyed 11 combat bots 3140 | -7/Garrison | Triggered checkpoint 3147 | -7/Garrison | Lost 4 parts (1p1n2w) 3179 | -7/Garrison | Discovered new exit (range 9) 3251 | -7/Garrison | Discovered new exit (range 9) 3402 | -7/Garrison | Triggered checkpoint 3442 | -7/Garrison | Core integrity fell below 50% 3533 | -7/Garrison | Discovered new exit (range 8) 3545 | -7/Garrison | Installed Relay Interface Framework 3554 | -7/Garrison | Entered Factory 3554 | -7/Factory | Accompanied by 1 ally 3954 | -7/Factory | First assault squad dispatched 4358 | -7/Factory | Core integrity fell below 20% 4373 | -7/Factory | Garrison activated, responded to threat 4383 | -7/Factory | Core destroyed Last Messages --------------- 04354_ C-30 ARC bursts open, deploying its payload. 04354_ G-50 Soldier unfolds itself. 04354_ B-48 Gladiator unfolds itself. 04354_ L-41 Fighter unfolds itself. 04354_ B-48 Gladiator unfolds itself. 04354_ I-36 Angel unfolds itself. 04354_ C-30 ARC bursts open, deploying its payload. 04354_ G-50 Soldier unfolds itself. 04354_ L-41 Fighter unfolds itself. 04354_ G-47 Trooper unfolds itself. 04354_ I-36 Angel unfolds itself. 04358_ Arc Projector destroyed. 04362_ Imp. Deuterium Engine destroyed. 04373_ G-50 Soldier calls for garrison reinforcements. 04373_ ALERT: Activating Garrison Access F004. 04373_ Imp. Medium Armor Plating destroyed. 04381_ L-41 Fighter system terminally corrupted. 04381_ Imp. Melee Analysis Suite fried. 04381_ Imp. Deuterium Engine fried. 04381_ Microactuators fried. Map ----- +----------------------------------------------------+ | #???????????????????????????????????????? | | """ #???????????????????????????????????????? | | """ #???????????????????????????????????????? | | """ #???????????????????????????????????????? | | #?????????? ??????????????????????????? | | #?????????# #?????????????????????????? | | #?????????# #?????????????????????????? | | #?????????# #?????????????????????????? | | #?????????# #?????????????????????????? | | " "" #?????????# +?????????????????????????? | | "S"" #?????????# #?????????????????????????? | | """ #?????????# #?????????????????????????? | | ######?????????# #?????????????????????????? | | ???????????????# #???#+#???????????????????? | | ???????????????# #???# #???????????????????? | | ???????????????# #???# #???????????????????? | | ?????????????### ###?# ###########?????????? | | ############## #?# ## #?????????? | | %!= = ### ##!!= !#?????????? | | !!= = #!!= ! #?????????? | | ][ #!=! #?????????? | | % ; %* #?????????? | | [ ##a ;*== """ #?????????? | | ###+########## ## =;%%gggG" #?????????? | | #????########## =;%l@ """l#?????????? | | """ #?????????????# @;/b!i #?????????? | | """ #?????????????# ##########?????????? | | """ #???????????? ??????????????????? | | #???????????# ?????????????????? | | ] #???????????# #????????????????? | | ]] #???????????+ ! #????????????????? | | ] ]] #???????????# #????????????????? | | #???????????# #????????????????? | | #########???????????# #????????????????? | | ????????????????????####+####????????????????? | | ?????????????????????????????????????????????? | | ?????????????????????????????????????????????? | | ?????????????????????????????????????????????? | | ?????????????????????????????????????????????? | | ?????????????????????????????????????????????? | | ?????????????????????????????????????????????? | | ?????????????????????????????????????????????? | | ?????????????????????????????????????????????? | | ?????????????????????????????????????????????? | | ?????????????????????????????????????????????? | | ?????????????????????????????????????????????? | | ?????????????????????????????????????????????? | | ?????????????????????????????????????????????? | | ?????????????????????????????????????????????? | | ?????????????????????????????????????????????? | +----------------------------------------------------+ Best States ------------- Heat Dissipation 75 Energy Generation 27 Energy Capacity 465 Matter Stores 300 Matter Capacity 300 Sight Range 16 Terrain Scan Density 10 Armor Coverage 225 Evasion (%) 40 Targeting Accuracy 8 Recoil Reduction 3 Item Schematics ----------------- None Robot Schematics ------------------ None Fabricated ------------ Nothing Alien Tech Used ----------------- None Achievements -------------- None Challenges ------------ None Game ------ Seed InsulatedGuidedDesublimator Manual? 0 Play Time 00:31:09 Cumulative 1022.6 hours Start 2020.03.31 @ 21:51:50 End 2020.03.31 @ 22:31:11 Sessions 1 Manual Loads 0 Difficulty Rogue Special Mode AFD2020/Player2 Game No. 612 Rogue 612 Adventurer 0 Explorer 0 Win Type - Total 18 Types 10/1/4/3/0/0/0 Lore% 89 Gallery% 94 Achievement% 80 Wizard Run 0 Options --------- ASCII 0 Keyboard 0 Movement Mouse Keybinds 0 Fullscreen 2 Font 24/Crisp Map View 76x50 Tactical HUD 1 Map Filters NONE Filters NONE Steam 1 RUN: c5270f56-eb21-47d7-8f20-f3d9a23544c8